[Event "Charlotte Summer IM C 2022"]
[Site "Charlotte"]
[Date "2022.07.29"]
[Round "9.1"]
[White "Adewumi, Tanitoluwa"]
[Black "Huston, Gus"]
[Result "0-1"]
[ECO "D02"]
[WhiteElo "2309"]
[BlackElo "2282"]
[Annotator "TA"]
[PlyCount "74"]
[EventDate "2022.07.24"]
[EventType "tourn"]
[EventCountry "USA"]
[SourceTitle "playchess.com"]
[Source "ChessBase"]
[SourceQuality "1"]
[TimeControl "5400+30"]

{[%evp 15,74,-10,0,-14,0,-8,8,-21,13,-16,34,37,44,15,28,0,17,20,12,0,0,0,0,-34,92,83,84,100,64,96,317,65,72,66,71,0,0,0,0,0,0,0,0,0,0,-235,0,-127,-145,-635,-529,-581,-558,-12835,-12834,-29991,-12839,-12840,-12840,-29993,-29994]} 1. d4 {[%emt 1:31:00]} Nf6 {[%emt 0:01:46]} 2. Nf3 {[%emt 0:00:00]} e6 {[%emt 0:00:21]} 3. Bf4 {[%emt 0:00:00]} d5 {[%emt 0:00:07]} 4. e3 {[%emt 0:00:00]} Bd6 {[%emt 0:00:05]} 5. Bg3 {[%emt 0:00:00]} c5 {[%emt 0:00:11]} 6. Nbd2 {[%emt 0:00:00]} O-O {[%emt 1:31:00]} 7. c3 {[%emt 0:00:00]} Nc6 {[%emt 0:00:30]} 8. Bd3 {[%emt 0:00:00]} b6 {[%emt 0:00:00]} 9. O-O {[%emt 0:04:00] D02: 1 d4 d5 2 Nf3 sidelines, including 2...Nf6 3 g3 and 2...Nf6 3 Bf4.} Bb7 {[%emt 0:00:00]} 10. Ne5 {[%emt 0:00:00]} Ne7 {[%emt 0:01:30]} 11. Qc2 {[%emt 0:00:00] The position is equal. Recently 11.Bh4 got a lot of attention.} Ng6 {[%emt 0:00:00]} 12. f4 {[%emt 0:01:30] [#]} cxd4 $146 {[%emt 0:01:00]} (12... Rc8 $11) ({Predecessor:} 12... a5 13. a4 Ba6 14. Bxa6 Rxa6 15. Nxg6 hxg6 16. Bh4 Qc7 17. Bxf6 gxf6 18. Qd3 Raa8 {1-0 (46) Srinath,R (2363)-Pribelszky,B (2187) Zalakaros 2018}) 13. exd4 $14 {[%emt 0:00:00]} Nh5 {[%emt 0:00:00]} 14. Rf3 {[%emt 0:00:00]} a5 {[%emt 0:00:00]} 15. Re1 {[%emt 0:00:00]} Ba6 {[%emt 0:00:00]} 16. Bxa6 {[%emt 0:00:00]} Rxa6 {[%emt 0:00:00]} 17. Qd3 {[%emt 0:00:00]} Ra8 {[%emt 0:00:00][%cal Ba6a8,Ba8e8,Be8e2][%mdl 32]} 18. f5 {[%emt 0:00:00]} exf5 {[%emt 0:00:00]} 19. Nc6 {[%emt 0:00:00]} Bxg3 {[%emt 0:00:00]} (19... Qc7 $15 {keeps the upper hand.} 20. Bxd6 Qxd6) 20. Nxd8 $16 {[%emt 0:00:00]} Bxe1 {[%emt 0:00:00]} 21. Nc6 {[%emt 0:04:30]} (21. Rxf5 Nhf4 22. Qe3 Nxg2 23. Kxg2 Nh4+ 24. Kg1 Nxf5 25. Qxe1 Raxd8 $19) 21... Rae8 {[%emt 0:00:00]} 22. Nf1 {[%emt 0:00:00]} ({But not} 22. Rxf5 Nhf4 23. Qb5 (23. Qc2 $2 Re2 $19) 23... Bxd2 $17) 22... Nh4 {[%emt 0:00:00]} (22... f4 $16) 23. Rxf5 $2 {[%emt 0:00:00]} (23. Re3 $18) 23... Nxf5 $14 {[%emt 0:00:00]} 24. Qxf5 {[%emt 0:00:00]} g6 {[%emt 0:00:00]} 25. Qg5 {[%emt 0:00:00]} ({Better is} 25. Qxd5 $16 Re2 26. Kh1) 25... Re2 $11 {[%emt 0:00:00] [#] Strongly threatening ...Kg7.} 26. g4 {[%emt 0:00:00]} ({Don't go for} 26. Qxd5 $2 Nf4 27. Qg5 Rxg2+ 28. Qxg2 Nxg2 29. Kxg2 Bh4 $19) 26... Ng7 {[%emt 0:00:00] Chess con chili.} 27. Ne7+ {[%emt 0:03:00]} Kh8 {[%emt 0:00:00] White must now prevent ...f6.} 28. Nxd5 {[%emt 0:00:00] Nf6 is the strong threat.} f5 {[%emt 0:00:00]} 29. Nf4 $1 {[%emt 0:00:00] Pair of Knights!} Rxb2 {[%emt 0:00:00]} 30. gxf5 $2 {[%emt 0:00:00]} (30. Qe7 $11 {and White is okay.} Re8 31. Qf7) 30... Bxc3 $2 {[%emt 0:00:00]} (30... Nxf5 $19 31. Nd3 Rb1 32. Nxe1 Rxe1) 31. Nxg6+ {[%emt 0:01:21]} hxg6 $17 {[%emt 0:00:00]} 32. Qh4+ {[%emt 0:00:27][%mdl 8192]} (32. fxg6 $17 Nf5 33. Ne3 Bxd4 34. g7+ Bxg7 35. Nxf5 Bd4+ 36. Kf1 (36. Nxd4 $2 Rg8 $19)) 32... Nh5 {[%emt 0:00:00]} 33. fxg6 {[%emt 0:00:29] [#]} Kg8 $1 {[%emt 0:00:00][%cal Ob2a2]} 34. Ng3 {[%emt 0:00:23]} (34. a3 Re2) 34... Rb1+ {[%emt 0:00:00]} 35. Nf1 {[%emt 0:01:20]} Rbxf1+ {[%emt 0:00:00]} (35... Rfxf1+ $142 36. Kg2 Nf4+ 37. Kg3 Be1+ 38. Kg4 Bxh4 39. Kf5 Rbe1 40. a4 Ne6+ 41. Kg4 Re4+ 42. Kh3 Rf2 43. d5 Ng5#) 36. Kg2 $19 {[%emt 0:00:00]} R8f2+ {[%emt 0:00:00]} 37. Kh3 {[%emt 0:00:00]} Rf3+ {[%emt 0:00:00] What a bad dream for White.  Weighted Error Value: White=1.15/Black=0.53} 0-1

[Event "Charlotte Summer IM C 2022"]
[Site "Charlotte"]
[Date "2022.07.28"]
[Round "9.2"]
[White "Girones Barrios, Yans Richard"]
[Black "Xie, Bryan"]
[Result "1/2-1/2"]
[ECO "D31"]
[WhiteElo "2412"]
[BlackElo "2191"]
[Annotator "TA"]
[PlyCount "22"]
[EventDate "2022.07.24"]
[EventType "tourn"]
[EventCountry "USA"]
[SourceTitle "playchess.com"]
[Source "ChessBase"]
[SourceQuality "1"]
[TimeControl "5400+30"]

{[%evp 16,22,32,31,27,0,24,-18,-19]} 1. d4 {[%emt 0:00:03]} d5 {[%emt 0:00:04]} 2. c4 {[%emt 0:00:18]} e6 {[%emt 0:00:06]} 3. Nc3 {[%emt 0:00:11]} Bb4 {[%emt 0:00:07]} 4. Nf3 {[%emt 0:05:05]} dxc4 {[%emt 0:00:34]} 5. e3 {[%emt 0:00:55]} b5 {[%emt 0:00:18]} 6. a4 {[%emt 0:06:21]} c6 {[%emt 0:00:18]} 7. Be2 {[%emt 0:01:27]} Nf6 {[%emt 0:00:52]} 8. O-O {[%emt 0:00:46]} Bxc3 {[%emt 0:00:10]} 9. bxc3 {[%emt 0:00:10]} O-O $1 {[%emt 0:00:22] D31: Queen's Gambit Declined: Semi-Slav without ...Nf6 (+ Marshall Gambit and Noteboom) and Exchange Variation lines without ...Nf6.} 10. Ne5 {[%emt 0:01:40][%mdl 1024] White has compensation.} Qc7 {[%emt 0:02:59] [#]} 11. Qc2 $146 {[%emt 0:06:59]} ({Predecessor:} 11. Bf3 Bb7 12. Re1 Nbd7 13. Nxd7 Nxd7 14. e4 e5 15. d5 Nc5 16. Ba3 Nd3 17. Bxf8 Nxe1 18. Qxe1 Rxf8 19. axb5 cxb5 20. Rxa7 {0-1 (44) Antova,G-Calin,A (1628) Mureck 2011}) 11... Nbd7 {[%emt 0:00:28] An even fight not without its subleties.  Weighted Error Value: White=0.33/Black=0.07 (flawless)} 1/2-1/2

[Event "Charlotte Summer IM C 2022"]
[Site "Charlotte"]
[Date "2022.07.28"]
[Round "9.3"]
[White "Arjun, Vishnuvardhan"]
[Black "Luo, Terry"]
[Result "1/2-1/2"]
[ECO "A49"]
[WhiteElo "2273"]
[BlackElo "2204"]
[Annotator "TA"]
[PlyCount "30"]
[EventDate "2022.07.24"]
[EventType "tourn"]
[EventCountry "USA"]
[SourceTitle "playchess.com"]
[Source "ChessBase"]
[SourceQuality "1"]
[TimeControl "5400+30"]

{[%evp 14,30,40,27,41,25,42,25,31,8,33,23,48,32,79,79,92,40,60]} 1. Nf3 {[%emt 0:00:09]} Nf6 {[%emt 0:00:12]} 2. g3 {[%emt 0:00:10]} g6 {[%emt 0:00:05]} 3. Bg2 {[%emt 0:00:03]} Bg7 {[%emt 0:00:03]} 4. O-O {[%emt 0:00:21]} O-O {[%emt 0:00:05]} 5. b3 {[%emt 0:01:06]} d6 {[%emt 0:04:02]} 6. d4 {[%emt 0:01:07]} c6 {[%emt 0:05:10]} 7. Bb2 {[%emt 0:03:41]} Bg4 {[%emt 0:00:43] 7...Bf5 is the modern continuation.} 8. Nbd2 {[%emt 0:00:26]} Qc8 {[%emt 0:06:30] A49: 1 d4 Nf6 2 Nf3 g6 3 g3: Anti-King's Indian systems.} 9. c4 {[%emt 0:00:34] [#]} a5 $146 {[%emt 0:01:19]} ({Predecessor:} 9... Bh3 10. e4 Bxg2 11. Kxg2 Nbd7 12. e5 dxe5 13. dxe5 Ng4 14. Qe2 Qc7 15. Rfe1 Rad8 16. Rad1 Nc5 17. Ne4 Nxe4 18. Qxe4 {½-½ (52) Fressinet,L (2717)-Harikrishna,P (2726) Dubai 2014}) 10. a3 {[%emt 0:02:32]} Na6 {[%emt 0:03:10] White has an edge.} 11. Rc1 {[%emt 0:01:41]} Nc7 {[%emt 0:01:57]} 12. Qc2 {[%emt 0:00:15]} Re8 {[%emt 0:07:04]} 13. e4 {[%emt 0:01:12]} Bxf3 {[%emt 0:00:55]} (13... Nd7 $14) 14. Nxf3 $16 {[%emt 0:00:41]} Nd7 {[%emt 0:00:21]} 15. b4 {[%emt 0:07:15]} (15. Rfd1 $16) 15... axb4 {[%emt 0:00:56] Weighted Error Value: White=0.21 (precise) /Black=0.17 (very precise)} 1/2-1/2

[Event "Charlotte Summer IM C 2022"]
[Site "Charlotte"]
[Date "2022.07.29"]
[Round "9.4"]
[White "Rodriguez Rivera, Pedro"]
[Black "Rodrigue-Lemieux, Shawn"]
[Result "0-1"]
[ECO "B13"]
[WhiteElo "2192"]
[BlackElo "2366"]
[Annotator "TA"]
[PlyCount "109"]
[EventDate "2022.07.24"]
[EventType "tourn"]
[EventCountry "USA"]
[SourceTitle "playchess.com"]
[Source "ChessBase"]
[SourceQuality "1"]
[TimeControl "5400+30"]

{[%evp 17,109,36,33,33,44,33,53,41,73,82,68,70,73,37,37,37,43,43,46,41,77,77,85,64,121,48,50,0,0,0,24,16,42,35,80,79,68,56,68,57,137,129,125,57,56,9,2,0,0,0,0,0,0,0,0,0,0,0,0,0,0,-1,0,0,0,-7,0,-7,-7,-7,0,0,0,0,0,0,0,0,0,0,0,0,-18,-274,-260,-230,-231,-540,-544,-984,-976,-29992,-29993,-29993]} 1. d4 {[%emt 0:02:22]} d5 {[%emt 0:00:08]} 2. Nf3 {[%emt 0:00:02]} c5 {[%emt 0:00:09]} 3. e3 {[%emt 0:00:06]} cxd4 {[%emt 0:00:04]} 4. exd4 {[%emt 0:00:06]} Nc6 {[%emt 0:00:04]} 5. c3 {[%emt 0:00:06]} Nf6 {[%emt 0:00:22]} 6. Bd3 {[%emt 0:00:07]} Qc7 {[%emt 0:00:12]} 7. h3 {[%emt 0:00:31]} g6 {[%emt 0:00:17]} 8. O-O {[%emt 0:00:08]} Bg7 {[%emt 0:00:03]} 9. Re1 {[%emt 0:00:17]} O-O {[%emt 0:00:05]} 10. Na3 {[%emt 0:11:21] B13: Caro-Kann: Exchange Variation and Panov-Botvinnik Attack.} a6 {[%emt 0:01:33]} 11. Nc2 {[%emt 0:00:23]} b5 {[%emt 0:02:07]} 12. a4 {[%emt 0:01:57] White is slightly better.} Rb8 {[%emt 0:01:16]} 13. axb5 {[%emt 0:00:21]} axb5 {[%emt 0:00:02] [#]} 14. Ne5 $146 {[%emt 0:01:35]} ({Predecessor:} 14. Qe2 Bf5 15. Bxf5 gxf5 16. g3 Qb7 17. Bf4 Ra8 18. Ne5 e6 19. Nd3 Nd7 20. Bd6 {½-½ (40) Song,J (2319)-Ider,B (2234) Nimes 2009}) 14... Nxe5 $1 {[%emt 0:06:04]} 15. dxe5 {[%emt 0:04:07]} (15. Rxe5 $5 {[%cal Rd1f3]} Bb7 16. Bf4 $14 (16. Bxb5 Ne4 $15)) 15... Nd7 {[%emt 0:04:26]} 16. f4 {[%emt 0:02:45]} Nc5 {[%emt 0:00:10]} 17. Nb4 {[%emt 0:00:13]} Rd8 {[%emt 0:05:53]} 18. Be3 {[%emt 0:00:45]} Nxd3 {[%emt 0:22:46]} 19. Qxd3 {[%emt 0:01:29]} Bf5 {[%emt 0:05:13]} 20. Qd4 {[%emt 0:02:30] Threatens to win with Na6.} (20. Nxd5 $2 Qd7 21. Nxe7+ Qxe7 $19) 20... Rb7 {[%emt 0:12:55]} (20... Qc8 $14) 21. Ra6 {[%emt 0:07:53]} (21. Nxd5 $16 Qb8 22. Red1) 21... Be4 $14 {[%emt 0:02:37]} 22. Rc6 {[%emt 0:04:47]} ({Better is} 22. Qd2 $14) 22... Qd7 $11 {[%emt 0:00:53]} 23. Ra1 {[%emt 0:04:32]} h5 {[%emt 0:01:07]} 24. Rb6 $36 {[%emt 0:02:08][%mdl 2048] Black is under pressure.} Rc7 {[%emt 0:03:23]} 25. Qd2 {[%emt 0:04:49]} Rdc8 {[%emt 0:03:44]} 26. Ra5 {[%emt 0:03:19]} Qf5 {[%emt 0:04:55]} 27. Rbxb5 {[%emt 0:03:17]} e6 {[%emt 0:02:26]} 28. Na6 {[%emt 0:04:59]} Rc6 {[%emt 0:01:55]} (28... Rc4 $14) 29. Nc5 $16 {[%emt 0:03:22] aiming for Nb3.} g5 {[%emt 0:00:05]} 30. Nxe4 {[%emt 0:00:32]} (30. fxg5 $16 {Black must now prevent Rb4.} Bxe5 31. Ra1) 30... Qxe4 $14 {[%emt 0:02:43]} 31. Rb4 {[%emt 0:02:10]} (31. fxg5 $14 Qb1+ 32. Qc1) 31... Rc4 $11 {[%emt 0:00:29]} 32. Raa4 {[%emt 0:01:03]} ({But not} 32. fxg5 $2 Rxb4 33. Ra1 (33. cxb4 $2 {loses.} Rc2 $19) 33... Bxe5 $1 $19) 32... gxf4 {[%emt 0:00:48]} 33. Bxf4 {[%emt 0:03:28]} Bxe5 {[%emt 0:00:17]} 34. Rxc4 {[%emt 0:02:15]} dxc4 {[%emt 0:00:14]} 35. Bxe5 {[%emt 0:01:07]} Qxe5 {[%emt 0:00:04][%mdl 4096] Endgame KQR-KQR} 36. Ra1 {[%emt 0:01:38]} Qc5+ {[%emt 0:04:23]} 37. Kh1 {[%emt 0:00:09]} Qf5 {[%emt 0:00:52] Inhibits Qf4.} 38. Rd1 {[%emt 0:00:40]} Rc5 {[%emt 0:00:49]} 39. Qe3 {[%emt 0:07:40]} Kh7 {[%emt 0:01:28]} 40. Kg1 {[%emt 0:02:39]} Re5 {[%emt 0:00:55]} 41. Qa7 {[%emt 0:01:19] Strongly threatening Rf1.} Re4 {[%emt 0:01:56]} 42. Qf2 {[%emt 0:01:52]} Rf4 {[%emt 0:00:30]} 43. Qe3 {[%emt 0:00:16]} e5 {[%emt 0:01:17]} 44. Re1 {[%emt 0:00:35]} f6 {[%emt 0:00:21]} 45. Qa7+ {[%emt 0:00:29]} Kg6 {[%emt 0:00:12]} 46. Qa8 {[%emt 0:01:52]} Qe6 {[%emt 0:00:27]} 47. Qa7 {[%emt 0:01:33]} h4 {[%emt 0:00:11]} 48. Qe3 {[%emt 0:00:29]} Qf5 {[%emt 0:00:18]} 49. Rd1 {[%emt 0:02:20]} Qc2 {[%emt 0:00:39][%csl LRb2,LRd1]} 50. Qd2 {[%emt 0:01:00][%mdl 8192] This move loses the game for White.} (50. Re1 $11) 50... Qxd2 $19 {[%emt 0:02:21]} 51. Rxd2 {[%emt 0:00:01] [#]} Kf5 $1 {[%emt 0:09:52]} 52. Kh2 $2 {[%emt 0:11:06]} (52. Rd6 {is a better chance.} Ke4 53. Re6) 52... Ke4 {[%emt 0:00:00]} 53. g3 {[%emt 0:00:00] [#]} Ke3 {[%emt 0:01:00] ( -> ...Rf2+)} 54. Rc2 {[%emt 0:00:00]} (54. Rg2 hxg3+) 54... Rf2+ {[%emt 0:00:00]} 55. Rxf2 {[%emt 0:00:00] Weighted Error Value: White=0.48/Black=0.07 (flawless)} 0-1

[Event "Charlotte Summer IM C 2022"]
[Site "Charlotte"]
[Date "2022.07.28"]
[Round "9.5"]
[White "Wen, Tommy"]
[Black "Venkat, Raghav"]
[Result "1/2-1/2"]
[ECO "B60"]
[WhiteElo "2040"]
[BlackElo "2227"]
[Annotator "TA"]
[PlyCount "39"]
[EventDate "2022.07.24"]
[EventType "tourn"]
[EventCountry "USA"]
[SourceTitle "playchess.com"]
[Source "ChessBase"]
[SourceQuality "1"]
[TimeControl "5400+30"]

{[%evp 14,39,51,43,44,0,0,-10,0,-48,-44,-47,-33,-44,0,0,8,10,9,0,0,0,0,0,0,0,147,23]} 1. e4 {[%emt 1:31:00]} c5 {[%emt 1:31:00]} 2. Nf3 {[%emt 0:00:30]} d6 {[%emt 0:00:00]} 3. d4 {[%emt 0:00:00]} cxd4 {[%emt 0:00:00]} 4. Nxd4 {[%emt 0:00:00]} Nf6 {[%emt 0:01:30]} 5. Nc3 {[%emt 0:00:00]} Nc6 {[%emt 0:00:00]} 6. Bg5 {[%emt 0:00:00]} g6 {[%emt 0:00:00]} 7. Bxf6 {[%emt 0:00:00]} exf6 {[%emt 0:00:00]} 8. Qd2 {[%emt 0:00:00]} (8. Bb5 $5 {[%cal Rd4c6]} Bd7 9. Ba4 $14) 8... Bg7 {[%emt 0:00:00] B60: Sicilian: Richter-Rauzer: Unusual Black 6th moves and 6...Bd7 without 7 Qd2.} 9. Nb3 {[%emt 0:00:00] Pair of Knights!} (9. Bc4 {seems wilder.} f5 10. Ndb5 O-O 11. O-O-O) 9... O-O {[%emt 0:02:30]} 10. O-O-O {[%emt 0:04:00]} f5 {[%emt 0:00:00] The position is equal.} 11. Bd3 (11. Qxd6 $11 Qb6 12. Qc5) 11... a5 $15 {[%emt 0:01:00] [#] And now ...a4 would win.} 12. a4 $1 {[%emt 0:01:00]} Nb4 {[%emt 0:00:30] [#]} 13. Kb1 $146 {[%emt 0:00:30]} ({Predecessor:} 13. exf5 Nxd3+ 14. Qxd3 Bxf5 15. Qg3 Rc8 16. Nd4 Bd7 17. Ndb5 Bxb5 18. Nxb5 Qf6 19. c3 {0-1 (46) Rasmussen,A (2535)-Illescas Cordoba,M (2591) Novi Sad 2009}) 13... Bd7 {[%emt 0:00:00]} 14. exf5 Rc8 {[%emt 0:00:00][%cal Oc8c3] ...Rxc3! is the strong threat.} 15. Be4 gxf5 {[%emt 0:00:00]} 16. Bxb7 Rb8 {[%emt 0:00:00]} 17. Qxd6 Rxb7 {[%emt 0:00:00]} 18. Nc5 $1 {[%csl LRb7,LRd7][%mdl 64] Deflection, Double Attack} Rb6 {[%emt 0:03:00]} (18... Bxc3 $2 19. Nxb7 Qc8 20. Qxd7 $18) 19. Qxd7 {[%emt 0:03:00]} Qf6 {[%emt 0:00:30] [#]} (19... Qc8 $11 20. Qxc8 Rxc8) 20. Qd2 {[%emt 0:00:30] Weighted Error Value: White=0.10 (very precise) /Black=0.22 (precise)} (20. Nb3 $1 $16) 1/2-1/2